fUSD/lending_fUSD_20240923
["ID","MTS","AMOUNT","RATE_DAILY","PERIOD"]
[339011762,1727122232194,-2923.05612348,0.00012793,2]
[339011764,1727122232203,-2923.05612348,0.00012794,2]
[339011766,1727122232213,-2339.12917381,0.00012796,2]
[339011768,1727122232225,-583.92694967,0.00012796,2]
[339011770,1727122232235,-2923.05612348,0.00012797,2]
[339011772,1727122232244,-2923.05612348,0.00012798,2]
[339011774,1727122232254,-2923.05612348,0.00012799,2]
[339011776,1727122232263,-1898.5812,0.000128,2]
[339011778,1727122232273,-157.52590792,0.000128,2]
[339011780,1727122232282,-2923.05612348,0.000128,2]
[339011782,1727122232292,-1500.0,0.00012818,2]
[339011784,1727122232302,-161.76,0.00012826,2]
[339011786,1727122232311,-177.027,0.00012849,2]
[339011788,1727122232320,-166.749,0.00012849,2]
[339011790,1727122232330,-158.31767819,0.0001288,2]
[339011792,1727122232340,-151.97,0.0001288,2]
[339011794,1727122232350,-323.34623,0.00012889,2]
[339011796,1727122232359,-500.0,0.00012889,2]
[339011798,1727122232369,-255.00847211,0.00012889,2]
[339011800,1727122232378,-591.54369029,0.00012889,2]
[339011802,1727122232388,-3371.25,0.00012889,2]
[339011804,1727122232398,-3371.25,0.00012889,2]
[339011806,1727122232408,-3371.25,0.00012889,2]
[339011808,1727122232418,-3371.25,0.00012889,2]
[339011810,1727122232428,-3371.25,0.00012889,2]
[339011812,1727122232437,-3371.25,0.00012889,2]
[339011814,1727122232447,-3371.25,0.00012889,2]
[339011816,1727122232457,-3371.25,0.00012889,2]
[339011818,1727122232467,-1003040.23073568,0.0001289,3]
[339011819,1727122232479,-52594.15252274,0.0001289,3]
[339011820,1727122232490,-1783.20741457,0.0001289,3]
[339011825,1727122238114,-18974.0009733,0.0001289,3]
[339011826,1727122238126,-10420.80222486,0.0001289,3]
[339011827,1727122238137,-7768.1384,0.0001289,3]
[339011828,1727122238150,-7546.2938,0.0001289,3]
[339011829,1727122238163,-17006.65070178,0.0001289,3]
[339011830,1727122238183,-527.28958145,0.0001289,3]
[339011831,1727122238241,-752.92921906,0.0001289,3]
[339012280,1727122242945,-717.9,0.0001289,3]
[339012282,1727122242957,-483.05719049,0.0001289,3]
[339012284,1727122242968,-760.21,0.0001289,3]
[339012288,1727122242998,-547.46957672,0.0001289,3]
[339012290,1727122243009,-427.149998,0.0001289,3]
[339012296,1727122243053,-407.98702697,0.0001289,3]
[339012298,1727122243065,-1700.6,0.0001289,3]
[339012300,1727122243076,-599.65000005,0.0001289,3]
[339012304,1727122243110,-715.43335499,0.0001289,3]
[339012311,1727122243164,-63286.99999999,0.0001289,3]
[339012323,1727122243272,-4330.59626476,0.0001289,3]
[339012325,1727122243284,-1075.19585022,0.0001289,3]
[339012327,1727122243295,-827.19049739,0.0001289,3]
[339012354,1727122245838,-1000.0,0.0001289,3]
[339012355,1727122245849,-3171.7,0.0001289,3]
[339012356,1727122245941,-1038.15999469,0.0001289,3]
[339012357,1727122246104,-739.3446324,0.0001289,3]
[339012359,1727122286169,500.0,9.724e-05,2]
[339012360,1727122291850,500.0,9.724e-05,2]
[339012361,1727122306236,500.0,9.724e-05,2]
[339012362,1727122671132,500.0,9.724e-05,2]
[339012363,1727122736316,665.61,9.77e-05,2]
[339012364,1727122771487,172.77,0.00010959,2]
[339012386,1727123258199,688.81,9.61e-05,2]
[339012389,1727123333193,155.3,0.00010959,2]
[339012390,1727123345992,1050.0,0.00011,2]
[339012395,1727123432182,-230.482276,0.00011429,2]
[339012396,1727123432192,-250.0,0.00011487,2]
[339012397,1727123432202,-250.0,0.00011491,2]
[339012398,1727123432211,-150.0,0.00011511,2]
[339012399,1727123432222,-155.34,0.00011548,2]
[339012400,1727123432232,-13975.318484,0.00011558,2]
[339012401,1727123432244,-1474.18482912,0.00011558,2]
[339012402,1727123432255,-6354.98845,0.00011558,2]
[339012409,1727123438211,-785.23100942,0.00011558,2]
[339012410,1727123438320,-111.09722746,0.00011558,2]
[339012411,1727123438330,-167.66,0.00011564,2]
[339012412,1727123438340,-275.16,0.00011571,2]
[339012413,1727123438350,-1000.0,0.00011571,2]
[339012414,1727123438359,-252.18580286,0.00011579,2]
[339012415,1727123438377,-1747.81419714,0.00011579,2]
[339012416,1727123438388,-597.96,0.0001162,2]
[339012417,1727123438397,-347.16,0.00011625,2]
[339012418,1727123438408,-169.71,0.00011627,2]
[339012419,1727123438418,-250.0,0.0001169,2]
[339012420,1727123438429,-307.7,0.00011758,2]
[339012421,1727123438439,-299.99,0.00011796,2]
[339012422,1727123438448,-428.99,0.00011796,2]
[339012423,1727123438460,-688.81,0.00011874,2]
[339012424,1727123438469,-701.55867,0.00012,2]
[339012425,1727123438480,-916.09422171,0.00012325,2]
[339012426,1727123438542,-9083.90577829,0.00012325,2]
[339012427,1727123438551,-167.03,0.00012445,2]
[339012428,1727123438562,-168.36,0.00012445,2]
[339012429,1727123438571,-500.0,0.00012464,2]
[339012430,1727123438581,-500.0,0.00012464,2]
[339012431,1727123438591,-500.0,0.00012464,2]
[339012432,1727123438600,-5001.23637,0.0001251,2]
[339012433,1727123438609,-164.222117,0.00012531,2]
[339012434,1727123438619,-273.130806,0.00012531,2]
[339012435,1727123438628,-150.0,0.00012599,2]
[339012436,1727123438639,-1000.0,0.000126,2]
[339012437,1727123438648,-233.2434613,0.00012668,2]
[339012438,1727123438658,-176.75205611,0.00012689,2]
[339012439,1727123438667,-7500.0,0.0001269,2]
[339012440,1727123438676,-176.75205608,0.00012693,2]
[339012441,1727123438686,-176.75205608,0.00012696,2]
[339012442,1727123438695,-15011.1408,0.000127,2]
[339012443,1727123438705,-4715.78057896,0.000127,2]
[339012444,1727123438715,-1612.0,0.000127,2]
[339012445,1727123438726,-692.68298256,0.000127,2]
[339012446,1727123438737,-176.75205608,0.000127,2]
[339012447,1727123438746,-161.76,0.00012719,2]
[339012448,1727123438756,-1051.57888398,0.00012729,2]
[339012450,1727123438766,-150.0,0.00012731,2]
[339012452,1727123438777,-692.68298254,0.0001275,2]
[339012454,1727123438787,-151.97,0.0001277,2]
[339012456,1727123438796,-469.67151968,0.00012779,2]
[339012458,1727123438807,-746529.79478276,0.0001278,2]
[339012579,1727123440057,-10000.0,0.00012325,2]
[339012581,1727123440067,-19448.57591218,0.0001278,2]
[339012583,1727123440077,-2622.0242,0.0001279,2]
[339012585,1727123440086,-31114.7605,0.0001279,2]
[339012587,1727123440097,-4230.4916,0.0001279,2]
[339012589,1727123440108,-150.0,0.00012797,2]
[339012591,1727123440117,-292.76523543,0.00012799,2]
[339012593,1727123440127,-132216.24314169,0.000128,2]
[339012594,1727123440138,-2366.61029721,0.000128,2]
[339012595,1727123440168,-1271.8256352,0.000128,2]
[339013491,1727123504901,500.0,9.724e-05,2]
[339013492,1727123511126,500.0,9.724e-05,2]
[339013493,1727123524005,500.0,9.724e-05,2]
[339013494,1727123711471,176.43,9.407e-05,2]
[339013495,1727123857969,678.39,9.797e-05,2]
[339013499,1727124433255,500.0,9.724e-05,2]
[339013505,1727124467640,500.0,9.724e-05,2]
[339013506,1727124468967,500.0,9.724e-05,2]
[339013507,1727124471220,500.0,9.724e-05,2]
[339013519,1727124586362,700.01,9.579e-05,2]
[339013532,1727124632156,-478.64363892,0.0001136,2]
[339013533,1727124632165,-113.71842253,0.00011447,2]
[339013534,1727124632183,-886.28157747,0.00011447,2]
[339013535,1727124632192,-228.90940432,0.0001146,2]
[339013536,1727124632201,-150.8509707,0.00011515,2]
[339013537,1727124632210,-250.0,0.00011523,2]
[339013538,1727124632220,-250.0,0.0001156,2]
[339013539,1727124632229,-155.34,0.00011625,2]
[339013540,1727124632239,-668.89,0.00011641,2]
[339013541,1727124632249,-348.2,0.00011654,2]
[339013542,1727124632258,-250.0,0.000117,2]
[339013543,1727124632268,-159.06,0.00011718,2]
[339013544,1727124632277,-150.0,0.00011726,2]
[339013545,1727124632286,-700.01,0.00011842,2]
[339013546,1727124632295,-1015.74666034,0.00012314,2]
[339013547,1727124632306,-1098.10124655,0.00012314,2]
[339013548,1727124632317,-688.39999162,0.00012314,2]
[339013549,1727124632328,-1746.11417294,0.00012314,2]
[339013550,1727124632337,-428.27,0.000124,2]
[339013551,1727124632346,-20.17238761,0.000124,2]
[339013552,1727124632357,-129.82761239,0.000124,2]
[339013553,1727124632366,-351.3,0.000124,2]
[339013554,1727124632375,-500.0,0.00012464,2]
[339013555,1727124632384,-301.96,0.000125,2]
[339013556,1727124632393,-350.92,0.000125,2]
[339013557,1727124632402,-150.0,0.000125,2]
[339013558,1727124632411,-150.0,0.000125,2]
[339013559,1727124632420,-1727.4821,0.00012511,2]
[339013560,1727124632429,-162.571253,0.00012531,2]
[339013561,1727124632438,-261.1083,0.00012567,2]
[339013562,1727124632447,-826.5722,0.00012567,2]
[339013563,1727124632456,-214.3327,0.0001258,2]
[339013564,1727124632465,-900.05126307,0.0001259,2]
[339013565,1727124632475,-2035.89616596,0.0001259,2]
[339013566,1727124632487,-3504.07490294,0.0001259,2]
[339013567,1727124632498,-564.62649077,0.0001259,2]
[339013568,1727124632509,-3291.72950663,0.0001259,2]
[339013571,1727124632520,-10717.73971654,0.0001259,2]
[339013574,1727124632530,-150.0,0.00012599,2]
[339013576,1727124632539,-21575.687,0.000126,2]
[339013577,1727124632548,-8897.529,0.000126,2]
[339013578,1727124632557,-1428.2992,0.000126,2]
[339013579,1727124632565,-2294.21468562,0.00012611,2]
[339013580,1727124632715,-700.0,0.00012611,2]
[339013581,1727124632726,-4773.11977575,0.00012611,2]
[339013582,1727124632738,-278.60878409,0.00012611,2]
[339013583,1727124632749,-541.65536624,0.00012611,2]
[339013584,1727124632760,-4022.5657883,0.00012611,2]
[339013585,1727124632769,-340.3042,0.00012611,2]
[339013586,1727124632778,-161.76,0.00012659,2]
[339013587,1727124632786,-1400.54502651,0.0001268,2]
[339013588,1727124632797,-5243.29172088,0.0001268,2]
[339013589,1727124632812,-1300.0,0.0001268,2]
[339013590,1727124632822,-2966.48754,0.0001268,2]
[339013591,1727124632833,-1963.7448324,0.0001268,2]
[339013592,1727124632844,-2218.35862201,0.0001268,2]
[339013593,1727124632856,-484.37903317,0.0001268,2]
[339013594,1727124632866,-20557.51940339,0.0001268,2]
[339013595,1727124632878,-2375.40422164,0.0001268,2]
[339013596,1727124632887,-1144.7797,0.0001268,2]
[339013597,1727124632897,-1000.0,0.0001268,2]
[339013598,1727124632907,-3399.23897511,0.0001268,2]
[339013599,1727124632916,-35418.4264,0.000127,2]
[339013600,1727124632925,-7924.9599,0.000127,2]
[339013601,1727124632935,-326.1077,0.000127,2]
[339013602,1727124632945,-6736.9809,0.000127,2]
[339013603,1727124632954,-7658.9519,0.000127,2]
[339013604,1727124632963,-827.9067,0.000127,2]
[339013605,1727124632972,-213.8018,0.000127,2]
[339013606,1727124632981,-506.6185,0.000127,2]
[339013607,1727124632991,-158.48610629,0.000127,2]
[339013608,1727124633000,-270.23793475,0.000127,2]
[339013609,1727124633009,-1051.15532134,0.000127,2]
[339013610,1727124633018,-230.89432752,0.000127,2]
[339013611,1727124633028,-217.12067785,0.000127,2]
[339013612,1727124633038,-343.06727369,0.000127,2]
[339013613,1727124633047,-150.0,0.0001273,2]
[339013614,1727124633056,-150.0,0.00012742,2]
[339013615,1727124633065,-150.0,0.00012747,2]
[339013616,1727124633075,-150.0,0.0001275,2]
[339013617,1727124633084,-230.89432751,0.0001275,2]
[339013618,1727124633093,-343.06727368,0.0001275,2]
[339013619,1727124633102,-150.0,0.00012753,2]
[339013620,1727124633111,-156.12,0.0001279,2]
[339013621,1727124633121,-166.42136767,0.0001279,2]
[339013622,1727124633130,-150.0,0.00012793,2]
[339013623,1727124633139,-2004.65598259,0.00012799,2]
[339013624,1727124633149,-500.0,0.00012799,2]
[339013625,1727124633158,-384.55510475,0.00012799,2]
[339013626,1727124633167,-143597.08914276,0.000128,2]
[339013629,1727124638378,-1138.0,0.000128,2]
[339013630,1727124638389,-2953.88686576,0.000128,2]
[339013632,1727124638401,-845.302431,0.000128,2]
[339013633,1727124638434,-13142.68775836,0.000128,2]
[339013634,1727124638445,-699.69900693,0.000128,2]
[339013635,1727124638458,-2999.17169856,0.000128,2]
[339013636,1727124638469,-24210.59509431,0.000128,2]
[339013637,1727124638598,-1454.72444938,0.000128,2]
[339013638,1727124638653,-1056.9517954,0.000128,2]
[339013639,1727124638666,-2901.32341379,0.000128,2]
[339013640,1727124638678,-1264.43557993,0.000128,2]
[339013641,1727124639168,171.07,0.00010959,2]
[339013702,1727124643387,-4924.92,0.000128,2]
[339013703,1727124643444,-1371.56063522,0.000128,2]
[339013704,1727124643502,-81822.6946411,0.000128,2]
[339013705,1727124646161,-250.0,0.00011896,2]
[339013706,1727124646171,-2871.61854213,0.000128,2]
[339013707,1727124646393,-711.38074383,0.000128,2]
[339013708,1727124646406,-3338.58727615,0.000128,2]
[339013709,1727124646418,-1201.51934629,0.000128,2]
[339013710,1727124646431,-2729.66355406,0.000128,2]
[339013711,1727124646441,-3417.34393201,0.000128,2]
[339013712,1727124646453,-264.06840755,0.000128,2]
[339013713,1727124646464,-2289.91559988,0.000128,2]
[339013714,1727124646476,-74585.32084698,0.000128,2]
[339013716,1727124646590,-1215.30012531,0.000128,2]
[339013717,1727124646601,-78229.67342884,0.000128,2]
[339013718,1727124646794,-6115.45973799,0.000128,2]
[339013719,1727124646814,-632.21600347,0.000128,2]
[339013720,1727124646846,-634.977576,0.000128,2]
[339013721,1727124646856,-2972.76302513,0.000128,2]
[339013722,1727124646867,-792.73224283,0.000128,2]
[339013723,1727124646878,-1470.51803953,0.000128,2]
[339013724,1727124646889,-601.3007,0.000128,2]
[339013725,1727124646900,-6770.28999999,0.000128,2]
[339013726,1727124646911,-7290.30369597,0.000128,2]
[339013727,1727124723392,500.0,9.724e-05,2]
[339013728,1727125122209,500.0,9.724e-05,2]
[339013729,1727125134526,691.67,9.797e-05,2]
[339013730,1727125148468,1050.0,0.00011,2]
[339013731,1727125154454,500.0,9.724e-05,2]
[339013732,1727125187757,11510.0,0.000102,5]
[339013733,1727125264538,230.35,0.00010959,2]
[339013734,1727125400263,500.0,0.00010959,2]
[339013735,1727125403946,2000.0,0.00010959,2]
[339013736,1727125413395,500.0,0.00010959,2]
[339013737,1727125417357,500.0,0.00010871,2]
[339013738,1727125423885,200.0,0.00010959,2]
[339013776,1727125668593,716.87,9.781e-05,2]
[339013777,1727125758849,333.0,0.00010692,2]
[339013782,1727125831401,-450.0,0.00011341,2]
[339013783,1727125831620,-38.0,0.00011341,2]
[339013785,1727125831630,-190.90777657,0.00011614,2]
[339013787,1727125831641,-250.0,0.00011658,2]
[339013789,1727125831650,-158.84,0.00011686,2]
[339013791,1727125831660,-162.25222343,0.00011704,2]
[339013793,1727125831671,-87.74777657,0.00011704,2]
[339013795,1727125831680,-800.0,0.0001171,2]
[339013797,1727125831689,-757.32,0.00011714,2]
[339013799,1727125831697,-250.0,0.00011718,2]
[339013802,1727125831706,-79.06959077,0.00011732,2]
[339013821,1727125837571,-120.93040923,0.00011732,2]
[339013822,1727125837581,-411.58,0.00011735,2]
[339013823,1727125837590,-452.50959077,0.00012045,2]
[339013824,1727125837681,-264.36040923,0.00012045,2]
[339013825,1727125837690,-166.76959077,0.00012418,2]
[339013826,1727125837701,-389.23040923,0.00012418,2]
[339013827,1727125837710,-879.90959077,0.0001251,2]
[339013828,1727125837721,-533.76,0.0001251,2]
[339013829,1727125837732,-585.70767439,0.0001251,2]
[339013830,1727125837898,-3001.60120484,0.0001251,2]
[339013831,1727125837907,-150.0,0.00012599,2]
[339013832,1727125837917,-19085.6414,0.000126,2]
[339013833,1727125837926,-4389.6255,0.000126,2]
[339013834,1727125837935,-566.755,0.000126,2]
[339013835,1727125837945,-150.0,0.00012613,2]
[339013836,1727125837954,-150.0,0.00012623,2]
[339013837,1727125837964,-150.0,0.00012629,2]
[339013838,1727125837973,-150.0,0.00012645,2]
[339013839,1727125837983,-150.0,0.00012651,2]
[339013840,1727125837994,-150.0,0.00012664,2]
[339013841,1727125838005,-150.0,0.00012677,2]
[339013842,1727125838014,-247.5158,0.000127,2]
[339013843,1727125838023,-7861.86861067,0.000127,2]
[339013844,1727125838035,-423.5032,0.000127,2]
[339013845,1727125838046,-317.37,0.000127,2]
[339013931,1727125839387,-600.607841,0.000127,2]
[339013932,1727125839399,-1777.7292,0.000127,2]
[339013933,1727125839444,-869.96734833,0.000127,2]
[339013934,1727125839454,-158.48610628,0.000127,2]
[339013935,1727125839464,-441.23768409,0.000127,2]
[339013936,1727125839476,-10380.57899227,0.000127,2]
[339013937,1727125839485,-10821.81667629,0.00012711,2]
[339013938,1727125839495,-1500.0,0.00012715,2]
[339013939,1727125839504,-150.0,0.00012718,2]
[339013940,1727125839513,-10821.81667629,0.00012722,2]
[339013941,1727125839523,-150.0,0.00012724,2]
[339013942,1727125839532,-10821.81667629,0.00012733,2]
[339013943,1727125839542,-10821.81667629,0.00012744,2]
[339013944,1727125839551,-10821.81667629,0.00012756,2]
[339013945,1727125839560,-21331.61426291,0.00012766,2]
[339013946,1727125839570,-150.0,0.00012766,2]
[339013947,1727125839579,-9132.8817698,0.00012767,2]
[339013948,1727125839591,-1653.67272979,0.00012767,2]
[339013949,1727125839608,-35.2621767,0.00012767,2]
[339013951,1727125839618,-4231.63508844,0.00012778,2]
[339013953,1727125839629,-4019.09127962,0.00012778,2]
[339013955,1727125839643,-315.6,0.00012778,2]
[339013958,1727125839655,-499.9678047,0.00012778,2]
[339013960,1727125839666,-854.82430547,0.00012778,2]
[339013961,1727125839678,-900.69819806,0.00012778,2]
[339013963,1727125839688,-150.0,0.00012779,2]
[339013965,1727125839697,-1247.70343032,0.00012789,2]
[339014240,1727125842541,-782.4782933,0.00012295,2]
[339014242,1727125842553,-1203.92,0.00012295,2]
[339014244,1727125842566,-1300.40014494,0.00012295,2]
[339014246,1727125842576,-3848.73398571,0.00012789,2]
[339014250,1727125842596,-5725.37926026,0.00012789,2]
[339014252,1727125842616,-150.0,0.00012789,2]
[339014254,1727125842624,-150.0,0.00012793,2]
[339014256,1727125842636,-1772.33,0.00012799,2]
[339014257,1727125842646,-21344.60936815,0.000128,2]
[339014259,1727125842657,-17425.3167448,0.000128,2]
[339014261,1727125842668,-16268.07293523,0.000128,2]
[339014380,1727125845398,-343.06727368,0.000127,2]
[339014381,1727125845408,-206.89330536,0.000128,2]
[339014382,1727125845454,-16682.80522336,0.000128,2]
[339014383,1727125845466,-9831.76687634,0.000128,2]
[339014384,1727125845477,-8179.73972213,0.000128,2]
[339014385,1727125845488,-4511.90414,0.000128,2]
[339014386,1727125845729,-268.71844669,0.000128,2]
[339014388,1727125880360,500.0,9.724e-05,2]
[339014389,1727125947132,500.0,9.724e-05,2]
[339014390,1727125970983,500.0,9.724e-05,2]
[339014391,1727125977776,500.0,9.724e-05,2]
[339014392,1727126006346,500.0,0.00010959,2]
[339014393,1727126009631,2000.0,0.00010959,2]
[339014394,1727126014303,500.0,9.724e-05,2]
[339014395,1727126023271,500.0,9.646e-05,2]
[339014396,1727126089412,169.27,0.00010959,2]
[339014397,1727126379788,704.96,9.826e-05,2]
[339014398,1727126611871,2000.0,0.00010959,2]
[339014399,1727126623446,500.0,9.747e-05,2]
[339014402,1727126733675,229.6010887,0.0001,2]
[339014403,1727126760828,161.03325041,9e-05,2]
[339014412,1727126836565,205.0,9.8e-05,2]
[339014413,1727126840903,245.90605685,0.000101,2]
[339014414,1727126876427,15481.41751108,0.0001,2]
[339014415,1727126889974,14965.5617852,0.000109,2]
[339014417,1727126914124,211.76739498,0.0001,2]
[339014420,1727126950973,1050.0,0.00011,2]
[339014436,1727127031682,-250.0,0.00011601,2]
[339014437,1727127031692,-1500.0,0.00011636,2]
[339014438,1727127031702,-329.26,0.00011686,2]
[339014439,1727127031712,-300.0,0.00011708,2]
[339014440,1727127031722,-10342.34,0.00011709,2]
[339014441,1727127031797,-724.80036648,0.00011709,2]
[339014442,1727127031858,-1618.48322375,0.00011709,2]
[339014463,1727127037707,-9681.01263141,0.00011709,2]
[339014464,1727127037718,-918.84607546,0.00011709,2]
[339014465,1727127037876,-273.87550485,0.00011709,2]
[339014466,1727127037888,-340.64219805,0.00011709,2]
[339014467,1727127037899,-84.75780195,0.0001171,2]
[339014468,1727127037938,-165.24219805,0.0001171,2]
[339014469,1727127037949,-770.44,0.00011735,2]
[339014470,1727127037958,-250.0,0.00011735,2]
[339014471,1727127037968,-640.0,0.00011735,2]
[339014472,1727127037979,-158.84,0.0001174,2]
[339014473,1727127037989,-360.0,0.00011863,2]
[339014474,1727127037998,-19.49231621,0.00011877,2]
[339014475,1727127038009,-133.09768379,0.00011877,2]
[339014476,1727127038019,-150.99,0.00011877,2]
[339014477,1727127038029,-440.88415622,0.00011877,2]
[339014478,1727127038077,-59.10584378,0.00011877,2]
[339014479,1727127038087,-704.96,0.0001209,2]
[339014480,1727127038096,-168.36,0.00012445,2]
[339014481,1727127038107,-150.0,0.00012502,2]
[339014482,1727127038118,-6555.33040515,0.000126,2]
[339014483,1727127038130,-754.37620419,0.000126,2]
[339014484,1727127038140,-150.0,0.00012652,2]
[339014485,1727127038149,-150.0,0.0001267,2]
[339014486,1727127038158,-1655.1104354,0.0001269,2]
[339014487,1727127038169,-3130.95706999,0.0001269,2]
[339014488,1727127038178,-150.0,0.00012699,2]
[339014489,1727127038187,-944.144,0.00012699,2]
[339014490,1727127038197,-6504.83013001,0.000127,2]
[339014491,1727127038209,-1503.10643675,0.000127,2]
[339014492,1727127038222,-421.78588728,0.000127,2]
[339014507,1727127039567,-11217.70454596,0.000127,2]
[339014508,1727127039576,-165.91800675,0.000127,2]
[339014509,1727127039585,-1082.18166771,0.000127,2]
[339014510,1727127039595,-672.74408021,0.000127,2]
[339014511,1727127039604,-150.0,0.00012706,2]
[339014512,1727127039613,-1082.18166762,0.00012711,2]
[339014513,1727127039623,-150.0,0.00012712,2]
[339014514,1727127039632,-1082.18166762,0.00012722,2]
[339014515,1727127039642,-150.0,0.00012727,2]
[339014516,1727127039651,-294.83,0.0001273,2]
[339014517,1727127039660,-1082.18166762,0.00012733,2]
[339014518,1727127039669,-1082.18166762,0.00012744,2]
[339014519,1727127039679,-176.54771119,0.00012745,2]
[339014520,1727127039688,-672.74408021,0.0001275,2]
[339014521,1727127039697,-1082.18166762,0.00012756,2]
[339014522,1727127039707,-889.99703772,0.00012767,2]
[339014523,1727127039718,-192.1846299,0.00012767,2]
[339014524,1727127039727,-500.0,0.00012773,2]
[339014525,1727127039736,-200.60529987,0.00012773,2]
[339014526,1727127039746,-500.0,0.00012773,2]
[339014527,1727127039755,-500.0,0.00012773,2]
[339014528,1727127039765,-303.35309125,0.00012773,2]
[339014529,1727127039774,-232.53798225,0.00012773,2]
[339014530,1727127039783,-160.47700564,0.00012773,2]
[339014531,1727127039792,-1082.18166762,0.00012778,2]
[339014532,1727127039801,-1082.18166762,0.00012789,2]
[339014533,1727127039811,-2298.94335855,0.00012798,2]
[339014534,1727127039820,-660.42235019,0.00012799,2]
[339014536,1727127039829,-500.0,0.00012799,2]
[339014538,1727127039838,-500.0,0.00012799,2]
[339014540,1727127039847,-500.0,0.00012799,2]
[339014542,1727127039856,-500.0,0.00012799,2]
[339014544,1727127039865,-500.0,0.00012799,2]
[339014546,1727127039875,-200.0,0.00012799,2]
[339014548,1727127039884,-500.0,0.00012799,2]
[339014550,1727127039893,-500.0,0.00012799,2]
[339014552,1727127039902,-500.0,0.00012799,2]
[339014555,1727127039911,-500.0,0.00012799,2]
[339014557,1727127039920,-175.0471167,0.00012799,2]
[339014558,1727127039930,-500.0,0.00012799,2]
[339014562,1727127039939,-500.0,0.00012799,2]
[339014564,1727127039948,-500.0,0.00012799,2]
[339014566,1727127039958,-500.0,0.00012799,2]
[339014567,1727127039967,-500.0,0.00012799,2]
[339014569,1727127039975,-190.28548967,0.00012799,2]
[339014571,1727127039984,-1680.95952879,0.00012799,2]
[339014574,1727127039996,-17.52047121,0.00012799,2]
[339014576,1727127040005,-4285.37520277,0.00012799,2]
[339014578,1727127040016,-10465.05047589,0.00012799,2]
[339014580,1727127040027,-4525.37118149,0.00012799,2]
[339014582,1727127040037,-1072.66280005,0.00012799,2]
[339014584,1727127040050,-713.9999998,0.00012799,2]
[339014587,1727127040061,-412.39,0.00012799,2]
[339014589,1727127040072,-3297.81886019,0.00012799,2]
[339014591,1727127040082,-449.03088406,0.00012799,2]
[339014593,1727127040093,-685.08301683,0.00012799,2]
[339014595,1727127040103,-418.43404489,0.00012799,2]
[339014597,1727127040114,-336.69487228,0.00012799,2]
[339014600,1727127040126,-93887.53637394,0.00012799,2]
[339014621,1727127042658,-660.42235019,0.00012799,2]
[339014622,1727127042668,-5520.23548981,0.00012799,2]
[339014623,1727127042718,-63634.41690084,0.00012799,2]
[339014624,1727127042779,-304.74896181,0.00012799,2]
[339014625,1727127042791,-394.59,0.00012799,2]
[339014626,1727127042802,-313.505555,0.00012799,2]
[339014627,1727127042844,-270.24748209,0.00012799,2]
[339014628,1727127042855,-549.12224999,0.00012799,2]
[339014630,1727127043104,-630.99339394,0.00012799,2]
[339014632,1727127043115,-11182.80582935,0.00012799,2]
[339014634,1727127043127,-258.105,0.00012799,2]
[339014654,1727127104081,500.0,9.724e-05,2]
[339014655,1727127114414,-250.0,0.00011984,2]
[339014656,1727127134130,8278.07,0.0001195,2]
[339014657,1727127204872,250.0,0.00011943,2]
[339014658,1727127254199,171.43,0.00010959,2]
[339014659,1727127274746,692.45,9.955e-05,2]
[339014660,1727127320832,-150.68,0.00012039,2]
[339014661,1727127320857,-692.45,0.00012219,2]
[339014662,1727127320879,-2000.0,0.00012697,2]
[339014663,1727127320901,-500.0,0.00012697,2]
[339014664,1727127320923,-2694.0924,0.00012699,2]
[339014665,1727127320945,-8962.7776,0.00012699,2]
[339014666,1727127327222,385.22,0.00011921,2]
[339014667,1727127402047,1000.0,0.00011874,2]
[339014668,1727127404505,250.0,0.00011874,2]